[Event "SM-blixten 2025"]
[Site "Uppsala, Sweden"]
[Date "2025.07.03"]
[Round "11.2"]
[White "Olund, Joar"]
[Black "Malmstig, Erik"]
[Result "1-0"]
[TimeControl "3 min + 2 sec increment starting from move 1"]
[WhiteTitle "FM"]
[BlackTitle "FM"]
[WhiteElo "2369"]
[BlackElo "2231"]

1. d4 {[%clk 00:03:04]} Nf6 {[%clk 00:03:03]} {[%emt 00:00:01]} 2. Bg5 {[%clk
00:03:05]} {[%emt 00:00:01]} e6 {[%clk 00:02:59]} {[%emt 00:00:06]} 3. Nd2
{[%clk 00:03:05]} {[%emt 00:00:02]} d5 {[%clk 00:02:57]} {[%emt 00:00:04]} 4.
e3 {[%clk 00:03:06]} {[%emt 00:00:01]} c5 {[%clk 00:02:58]} {[%emt 00:00:01]} 5.
c3 {[%clk 00:03:08]} Nc6 {[%clk 00:02:59]} 6. Ngf3 {[%clk 00:03:09]} {[%emt
00:00:03]} Be7 {[%clk 00:03:00]} 7. Bd3 {[%clk 00:03:10]} {[%emt 00:00:01]} h6
{[%clk 00:03:01]} {[%emt 00:00:01]} 8. Bh4 {[%clk 00:03:09]} {[%emt 00:00:03]}
O-O {[%clk 00:02:58]} {[%emt 00:00:05]} 9. O-O {[%clk 00:03:04]} {[%emt
00:00:07]} Rb8 {[%clk 00:02:56]} {[%emt 00:00:04]} 10. Qe2 {[%clk 00:03:00]}
{[%emt 00:00:06]} a6 {[%clk 00:02:53]} {[%emt 00:00:05]} 11. Ne5 {[%clk
00:02:57]} {[%emt 00:00:04]} Nxe5 {[%clk 00:02:52]} {[%emt 00:00:04]} 12. dxe5
{[%clk 00:02:59]} Nd7 {[%clk 00:02:53]} {[%emt 00:00:01]} 13. Bg3 {[%clk
00:02:59]} {[%emt 00:00:01]} b5 {[%clk 00:02:44]} {[%emt 00:00:12]} 14. f4
{[%clk 00:02:59]} {[%emt 00:00:01]} Nb6 {[%clk 00:02:31]} {[%emt 00:00:15]} 15.
Rad1 {[%clk 00:02:56]} {[%emt 00:00:05]} Qe8 {[%clk 00:02:21]} {[%emt
00:00:12]} 16. h4 {[%clk 00:02:50]} {[%emt 00:00:07]} Nc4 {[%clk 00:02:08]}
{[%emt 00:00:16]} 17. Nf3 {[%clk 00:02:48]} {[%emt 00:00:05]} Bd7 {[%clk
00:02:03]} {[%emt 00:00:08]} 18. Bb1 {[%clk 00:02:32]} {[%emt 00:00:18]} Rd8
{[%clk 00:01:54]} {[%emt 00:00:10]} 19. h5 {[%clk 00:02:25]} {[%emt 00:00:09]}
f5 {[%clk 00:01:45]} {[%emt 00:00:11]} 20. exf6 {[%clk 00:02:26]} {[%emt
00:00:02]} Bxf6 {[%clk 00:01:44]} {[%emt 00:00:02]} 21. Nh2 {[%clk 00:01:29]}
{[%emt 00:00:59]} Nd6 {[%clk 00:01:30]} {[%emt 00:00:16]} 22. Bg6 {[%clk
00:01:24]} {[%emt 00:00:07]} Qe7 {[%clk 00:01:30]} {[%emt 00:00:02]} 23. Ng4
{[%clk 00:01:19]} {[%emt 00:00:07]} Bc6 {[%clk 00:01:28]} {[%emt 00:00:04]} 24.
Ne5 {[%clk 00:01:17]} {[%emt 00:00:04]} Bb7 {[%clk 00:01:15]} {[%emt 00:00:15]}
25. Qg4 {[%clk 00:01:13]} {[%emt 00:00:06]} a5 {[%clk 00:00:57]} {[%emt
00:00:20]} 26. Bc2 {[%clk 00:01:07]} {[%emt 00:00:08]} Bxe5 {[%clk 00:00:51]}
{[%emt 00:00:07]} 27. fxe5 {[%clk 00:01:08]} {[%emt 00:00:01]} Nf5 {[%clk
00:00:50]} {[%emt 00:00:01]} 28. Qg6 {[%clk 00:00:34]} {[%emt 00:00:37]} Bc8
{[%clk 00:00:23]} {[%emt 00:00:30]} 29. Bf4 {[%clk 00:00:32]} {[%emt 00:00:04]}
Qf7 {[%clk 00:00:19]} {[%emt 00:00:06]} 30. Qxf7+ {[%clk 00:00:13]} {[%emt
00:00:21]} Rxf7 {[%clk 00:00:19]} {[%emt 00:00:02]} 31. g4 {[%clk 00:00:12]}
{[%emt 00:00:03]} Ne7 {[%clk 00:00:17]} {[%emt 00:00:03]} 32. Bg3 {[%clk
00:00:09]} {[%emt 00:00:06]} Rdf8 {[%clk 00:00:18]} {[%emt 00:00:01]} 33. Rxf7
{[%clk 00:00:10]} {[%emt 00:00:01]} Rxf7 {[%clk 00:00:20]} {[%emt 00:00:01]} 34.
Rf1 {[%clk 00:00:09]} {[%emt 00:00:03]} Rxf1+ 35. Kxf1 {[%clk 00:00:10]} Kf7
{[%clk 00:00:22]} 36. Ke2 {[%clk 00:00:07]} {[%emt 00:00:06]} Bb7 {[%clk
00:00:23]} {[%emt 00:00:01]} 37. Kd2 {[%clk 00:00:07]} {[%emt 00:00:01]} Bc6
{[%clk 00:00:24]} 38. Bd3 {[%clk 00:00:07]} {[%emt 00:00:02]} g6 {[%clk
00:00:24]} {[%emt 00:00:01]} 39. Bf4 {[%clk 00:00:05]} {[%emt 00:00:05]} g5
{[%clk 00:00:21]} {[%emt 00:00:04]} 40. Bg3 {[%clk 00:00:06]} {[%emt 00:00:02]}
Bd7 {[%clk 00:00:21]} {[%emt 00:00:02]} 41. e4 {[%clk 00:00:06]} {[%emt
00:00:01]} Bc6 {[%clk 00:00:20]} {[%emt 00:00:03]} 42. exd5 {[%clk 00:00:05]}
{[%emt 00:00:04]} Nxd5 {[%clk 00:00:21]} {[%emt 00:00:01]} 43. Bg6+ {[%clk
00:00:05]} {[%emt 00:00:01]} Ke7 {[%clk 00:00:20]} {[%emt 00:00:04]} 44. Bf2
{[%clk 00:00:06]} c4 {[%clk 00:00:15]} {[%emt 00:00:07]} 45. Bc5+ {[%clk
00:00:08]} Kd7 {[%clk 00:00:14]} {[%emt 00:00:04]} 46. Bf8 {[%clk 00:00:09]}
{[%emt 00:00:01]} Nf4 {[%clk 00:00:10]} {[%emt 00:00:05]} 47. Bxh6 {[%clk
00:00:04]} {[%emt 00:00:06]} Nh3 {[%clk 00:00:07]} {[%emt 00:00:06]} 48. Ke3
{[%clk 00:00:04]} {[%emt 00:00:02]} Ke7 {[%clk 00:00:07]} {[%emt 00:00:03]} 49.
Bg7 {[%clk 00:00:05]} b4 {[%clk 00:00:05]} {[%emt 00:00:04]} 50. h6 {[%clk
00:00:04]} {[%emt 00:00:03]} Nf4 {[%clk 00:00:05]} {[%emt 00:00:02]} 51. Bf6+
{[%clk 00:00:05]} {[%emt 00:00:01]} Kf8 {[%clk 00:00:06]} {[%emt 00:00:01]} 52.
Be4 {[%clk 00:00:05]} {[%emt 00:00:02]} Bxe4 {[%clk 00:00:06]} {[%emt
00:00:02]} 53. Kxe4 {[%clk 00:00:07]} Kf7 {[%clk 00:00:07]} 54. h7 {[%clk
00:00:08]} {[%emt 00:00:01]} Ng6 {[%clk 00:00:08]} {[%emt 00:00:01]} 55. h8=Q
{[%clk 00:00:06]} {[%emt 00:00:03]} 1-0

[Event "SM-blixten 2025"]
[Site "Uppsala, Sweden"]
[Date "2025.07.03"]
[Round "1.7"]
[White "Akoral, Sinan"]
[Black "Sandberg, Lucas"]
[Result "0-1"]
[TimeControl "3 min + 2 sec increment starting from move 1"]
[WhiteElo "1776"]
[BlackElo "2274"]

1. d4 {[%clk 00:03:03]} Nf6 {[%clk 00:03:04]} 2. Bf4 {[%clk 00:03:01]} {[%emt
00:00:04]} c5 {[%clk 00:03:05]} {[%emt 00:00:01]} 3. e3 {[%clk 00:03:02]}
{[%emt 00:00:02]} cxd4 {[%clk 00:03:06]} 4. exd4 {[%clk 00:03:03]} {[%emt
00:00:01]} Qb6 {[%clk 00:03:06]} 5. Nc3 {[%clk 00:02:55]} {[%emt 00:00:10]} a6
{[%clk 00:03:08]} {[%emt 00:00:01]} 6. Rb1 {[%clk 00:02:55]} {[%emt 00:00:02]}
d5 {[%clk 00:03:09]} 7. Nf3 {[%clk 00:02:49]} {[%emt 00:00:07]} Bg4 {[%clk
00:03:09]} {[%emt 00:00:02]} 8. Bd3 {[%clk 00:02:47]} {[%emt 00:00:04]} Nc6
{[%clk 00:03:09]} {[%emt 00:00:02]} 9. O-O {[%clk 00:02:37]} {[%emt 00:00:13]}
Nxd4 {[%clk 00:03:08]} {[%emt 00:00:02]} 10. Be2 {[%clk 00:02:29]} {[%emt
00:00:10]} Nxe2+ {[%clk 00:03:08]} {[%emt 00:00:03]} 11. Qxe2 {[%clk 00:02:29]}
{[%emt 00:00:02]} e6 {[%clk 00:03:05]} {[%emt 00:00:04]} 12. h3 {[%clk
00:02:20]} {[%emt 00:00:11]} Bxf3 {[%clk 00:02:57]} {[%emt 00:00:10]} 13. Qxf3
{[%clk 00:02:19]} {[%emt 00:00:03]} Be7 {[%clk 00:02:57]} {[%emt 00:00:02]} 14.
Rfd1 {[%clk 00:02:04]} {[%emt 00:00:17]} O-O {[%clk 00:02:56]} {[%emt
00:00:03]} 15. Be3 {[%clk 00:02:04]} {[%emt 00:00:02]} Qc6 {[%clk 00:02:57]}
{[%emt 00:00:01]} 16. a3 {[%clk 00:02:02]} {[%emt 00:00:05]} b5 {[%clk
00:02:56]} {[%emt 00:00:02]} 17. Bd4 {[%clk 00:01:50]} {[%emt 00:00:13]} Rac8
{[%clk 00:02:55]} {[%emt 00:00:03]} 18. Rbc1 {[%clk 00:01:47]} {[%emt
00:00:05]} Rfd8 {[%clk 00:02:52]} {[%emt 00:00:05]} 19. Ne2 {[%clk 00:01:38]}
{[%emt 00:00:11]} Ne4 {[%clk 00:02:53]} {[%emt 00:00:02]} 20. c3 {[%clk
00:01:36]} {[%emt 00:00:03]} f6 {[%clk 00:02:51]} {[%emt 00:00:05]} 21. Be3
{[%clk 00:01:28]} {[%emt 00:00:09]} e5 {[%clk 00:02:51]} {[%emt 00:00:02]} 22.
Qg4 {[%clk 00:01:23]} {[%emt 00:00:06]} Bc5 {[%clk 00:02:47]} {[%emt 00:00:07]}
23. Bh6 {[%clk 00:01:18]} {[%emt 00:00:06]} Qd7 {[%clk 00:02:38]} {[%emt
00:00:10]} 24. Qxd7 {[%clk 00:01:18]} {[%emt 00:00:04]} Rxd7 {[%clk 00:02:40]}
25. Bd2 {[%clk 00:01:16]} {[%emt 00:00:04]} Nxf2 {[%clk 00:02:37]} {[%emt
00:00:05]} 26. Kf1 {[%clk 00:01:17]} Nxd1 {[%clk 00:02:37]} {[%emt 00:00:04]}
0-1

[Event "SM-blixten 2025"]
[Site "Uppsala, Sweden"]
[Date "2025.07.03"]
[Round "3.3"]
[White "Grahn, Vidar"]
[Black "Carlsson, Ludvig"]
[Result "0-1"]
[TimeControl "3 min + 2 sec increment starting from move 1"]
[WhiteTitle "FM"]
[BlackTitle "IM"]
[WhiteElo "2239"]
[BlackElo "2386"]

1. d4 {[%clk 00:03:03]} {[%emt 00:09:08]} Nf6 {[%clk 00:03:04]} 2. c4 c5 3. d5
{[%clk 00:03:06]} {[%emt 00:00:02]} d6 {[%clk 00:03:06]} {[%emt 00:00:01]} 4.
Nf3 {[%clk 00:03:05]} {[%emt 00:00:02]} g6 {[%clk 00:03:07]} {[%emt 00:00:01]}
5. g3 {[%clk 00:03:06]} Bg7 {[%clk 00:03:08]} 6. Bg2 {[%clk 00:03:08]} b5
{[%clk 00:03:10]} 7. cxb5 {[%clk 00:03:08]} {[%emt 00:00:02]} a6 {[%clk
00:03:11]} 8. bxa6 {[%clk 00:03:09]} {[%emt 00:00:02]} O-O {[%clk 00:03:08]}
{[%emt 00:00:05]} 9. Nc3 {[%clk 00:03:08]} {[%emt 00:00:03]} Nbd7 {[%clk
00:02:58]} {[%emt 00:00:12]} 10. O-O {[%clk 00:03:07]} {[%emt 00:00:03]} Nb6
{[%clk 00:02:51]} {[%emt 00:00:09]} 11. Qc2 {[%clk 00:02:31]} {[%emt 00:00:38]}
Bf5 {[%clk 00:02:39]} {[%emt 00:00:14]} 12. e4 {[%clk 00:02:26]} {[%emt
00:00:07]} Bc8 {[%clk 00:02:39]} {[%emt 00:00:02]} 13. Re1 {[%clk 00:02:22]}
{[%emt 00:00:05]} Nfd7 {[%clk 00:02:38]} {[%emt 00:00:03]} 14. Bf4 {[%clk
00:02:12]} {[%emt 00:00:13]} Nc4 {[%clk 00:02:33]} {[%emt 00:00:07]} 15. b3
{[%clk 00:02:04]} {[%emt 00:00:10]} Nce5 {[%clk 00:02:34]} {[%emt 00:00:02]} 16.
Nxe5 {[%clk 00:02:04]} {[%emt 00:00:01]} Nxe5 {[%clk 00:02:34]} {[%emt
00:00:02]} 17. a4 {[%clk 00:01:33]} {[%emt 00:00:33]} Bxa6 {[%clk 00:02:33]}
{[%emt 00:00:02]} 18. Bxe5 {[%clk 00:01:25]} {[%emt 00:00:11]} Bxe5 {[%clk
00:02:33]} {[%emt 00:00:03]} 19. Rab1 {[%clk 00:01:11]} {[%emt 00:00:16]} Qa5
{[%clk 00:02:33]} {[%emt 00:00:01]} 20. Rec1 {[%clk 00:01:08]} {[%emt
00:00:04]} Rfb8 {[%clk 00:02:31]} {[%emt 00:00:04]} 21. Bf1 {[%clk 00:01:05]}
{[%emt 00:00:06]} Bxf1 {[%clk 00:02:30]} {[%emt 00:00:03]} 22. Kxf1 {[%clk
00:01:05]} {[%emt 00:00:02]} Bxc3 {[%clk 00:01:27]} {[%emt 00:01:05]} 23. Qxc3
{[%clk 00:01:06]} {[%emt 00:00:01]} Qxc3 {[%clk 00:01:28]} {[%emt 00:00:02]} 24.
Rxc3 {[%clk 00:01:07]} {[%emt 00:00:01]} Rxa4 {[%clk 00:01:28]} {[%emt
00:00:02]} 25. bxa4 {[%clk 00:00:57]} {[%emt 00:00:12]} Rxb1+ {[%clk 00:01:28]}
{[%emt 00:00:01]} 26. Kg2 {[%clk 00:00:34]} {[%emt 00:00:25]} Ra1 {[%clk
00:01:20]} {[%emt 00:00:09]} 27. Rc4 {[%clk 00:00:34]} {[%emt 00:00:03]} Ra3
{[%clk 00:01:14]} {[%emt 00:00:08]} 28. f4 {[%clk 00:00:32]} {[%emt 00:00:04]}
f5 {[%clk 00:01:11]} {[%emt 00:00:05]} 29. e5 {[%clk 00:00:29]} {[%emt
00:00:05]} Kf7 {[%clk 00:01:09]} {[%emt 00:00:04]} 30. h4 {[%clk 00:00:26]}
{[%emt 00:00:05]} Rd3 {[%clk 00:00:45]} {[%emt 00:00:25]} 31. exd6 {[%clk
00:00:24]} {[%emt 00:00:05]} exd6 {[%clk 00:00:46]} {[%emt 00:00:01]} 32. Rc2
{[%clk 00:00:19]} {[%emt 00:00:08]} Ra3 {[%clk 00:00:44]} {[%emt 00:00:03]} 33.
Rc4 {[%clk 00:00:19]} {[%emt 00:00:02]} Kg7 {[%clk 00:00:43]} {[%emt 00:00:04]}
34. Kh3 {[%clk 00:00:18]} {[%emt 00:00:02]} Kh6 {[%clk 00:00:43]} {[%emt
00:00:02]} 35. Rc2 {[%clk 00:00:09]} {[%emt 00:00:11]} Rxa4 {[%clk 00:00:44]}
{[%emt 00:00:02]} 36. Rd2 {[%clk 00:00:07]} {[%emt 00:00:03]} Kh5 {[%clk
00:00:44]} {[%emt 00:00:02]} 37. Rd1 {[%clk 00:00:05]} {[%emt 00:00:04]} h6
{[%clk 00:00:43]} {[%emt 00:00:03]} 38. Rd2 {[%clk 00:00:06]} {[%emt 00:00:02]}
Rd4 {[%clk 00:00:39]} {[%emt 00:00:06]} 39. Re2 {[%clk 00:00:04]} {[%emt
00:00:03]} Rxd5 {[%clk 00:00:39]} {[%emt 00:00:02]} 40. Re6 {[%clk 00:00:05]}
{[%emt 00:00:01]} c4 {[%clk 00:00:39]} {[%emt 00:00:02]} 41. Re7 {[%clk
00:00:04]} {[%emt 00:00:04]} Rd3 {[%clk 00:00:38]} {[%emt 00:00:02]} 42. Rc7
{[%clk 00:00:05]} {[%emt 00:00:01]} c3 {[%clk 00:00:39]} {[%emt 00:00:02]} 43.
Rc6 {[%clk 00:00:06]} d5 {[%clk 00:00:39]} {[%emt 00:00:03]} 44. Rc5 {[%clk
00:00:07]} {[%emt 00:00:01]} d4 {[%clk 00:00:37]} {[%emt 00:00:04]} 45. Rd5
{[%clk 00:00:06]} {[%emt 00:00:03]} c2 {[%clk 00:00:36]} {[%emt 00:00:02]} 46.
Rc5 {[%clk 00:00:07]} {[%emt 00:00:01]} Rc3 {[%clk 00:00:37]} {[%emt 00:00:01]}
47. Rd5 {[%clk 00:00:03]} {[%emt 00:00:07]} c1=Q {[%clk 00:00:34]} {[%emt
00:00:04]} 0-1

[Event "SM-blixten 2025"]
[Site "Uppsala, Sweden"]
[Date "2025.07.03"]
[Round "4.9"]
[White "Engstrom, Kaj"]
[Black "Odell Johansson, Leo"]
[Result "0-1"]
[TimeControl "3 min + 2 sec increment starting from move 1"]
[WhiteElo "2156"]
[BlackElo "1991"]

1. e4 {[%clk 00:03:03]} c5 {[%clk 00:03:04]} {[%emt 00:00:01]} 2. Nf3 {[%clk
00:03:03]} {[%emt 00:00:01]} Nc6 {[%clk 00:03:05]} 3. d4 {[%clk 00:03:03]}
{[%emt 00:00:02]} cxd4 {[%clk 00:03:06]} 4. Nxd4 {[%clk 00:03:04]} {[%emt
00:00:01]} e5 {[%clk 00:03:07]} {[%emt 00:00:01]} 5. Nf3 {[%clk 00:03:02]}
{[%emt 00:00:04]} Nf6 {[%clk 00:03:01]} {[%emt 00:00:09]} 6. Nbd2 {[%clk
00:03:02]} {[%emt 00:00:02]} d5 {[%clk 00:02:55]} {[%emt 00:00:08]} 7. Bb5
{[%clk 00:03:00]} {[%emt 00:00:04]} dxe4 {[%clk 00:02:47]} {[%emt 00:00:11]} 8.
Nxe5 {[%clk 00:02:57]} {[%emt 00:00:04]} Bd7 {[%clk 00:02:38]} {[%emt
00:00:11]} 9. Nxd7 {[%clk 00:02:38]} {[%emt 00:00:21]} Qxd7 {[%clk 00:02:38]}
{[%emt 00:00:02]} 10. O-O {[%clk 00:02:36]} {[%emt 00:00:04]} Bd6 {[%clk
00:01:48]} {[%emt 00:00:53]} 11. Qe2 {[%clk 00:02:29]} {[%emt 00:00:08]} O-O
{[%clk 00:00:37]} {[%emt 00:01:13]} 12. Nxe4 {[%clk 00:02:26]} {[%emt
00:00:05]} Nxe4 {[%clk 00:00:37]} {[%emt 00:00:03]} 13. Qxe4 {[%clk 00:02:26]}
{[%emt 00:00:01]} Rfe8 {[%clk 00:00:34]} {[%emt 00:00:05]} 14. Bxc6 {[%clk
00:01:50]} {[%emt 00:00:39]} bxc6 {[%clk 00:00:35]} {[%emt 00:00:01]} 15. Qd3
{[%clk 00:01:45]} {[%emt 00:00:06]} Qc7 {[%clk 00:00:35]} {[%emt 00:00:03]} 16.
g3 {[%clk 00:01:40]} {[%emt 00:00:06]} Rad8 {[%clk 00:00:34]} {[%emt 00:00:03]}
17. Qf3 {[%clk 00:01:33]} {[%emt 00:00:09]} Rb8 {[%clk 00:00:33]} {[%emt
00:00:04]} 18. b3 {[%clk 00:01:31]} {[%emt 00:00:04]} Be5 {[%clk 00:00:34]}
{[%emt 00:00:01]} 19. Rb1 {[%clk 00:01:32]} c5 {[%clk 00:00:24]} {[%emt
00:00:12]} 20. Be3 {[%clk 00:01:20]} {[%emt 00:00:14]} Qa5 {[%clk 00:00:24]}
{[%emt 00:00:02]} 21. Bf4 {[%clk 00:00:37]} {[%emt 00:00:44]} Qxa2 {[%clk
00:00:22]} {[%emt 00:00:05]} 22. Bxe5 {[%clk 00:00:29]} {[%emt 00:00:09]} Rxe5
{[%clk 00:00:23]} {[%emt 00:00:01]} 23. Ra1 {[%clk 00:00:23]} {[%emt 00:00:09]}
Qxc2 {[%clk 00:00:24]} {[%emt 00:00:02]} 24. Rxa7 {[%clk 00:00:24]} {[%emt
00:00:01]} Rf5 {[%clk 00:00:20]} {[%emt 00:00:05]} 25. Ra8 {[%clk 00:00:13]}
{[%emt 00:00:13]} Rf8 {[%clk 00:00:20]} {[%emt 00:00:02]} 26. Rxf8+ Kxf8 27.
Qa8+ {[%clk 00:00:15]} Ke7 {[%clk 00:00:21]} 28. Re1+ {[%clk 00:00:13]} {[%emt
00:00:04]} Kf6 {[%clk 00:00:23]} 29. Qc6+ {[%clk 00:00:14]} {[%emt 00:00:01]}
Kg5 {[%clk 00:00:24]} {[%emt 00:00:01]} 30. h4+ {[%clk 00:00:14]} {[%emt
00:00:02]} Kh5 {[%clk 00:00:24]} {[%emt 00:00:02]} 31. Qg2 {[%clk 00:00:07]}
{[%emt 00:00:09]} Kg6 {[%clk 00:00:13]} {[%emt 00:00:12]} 32. Re3 {[%clk
00:00:07]} {[%emt 00:00:02]} f6 {[%clk 00:00:11]} {[%emt 00:00:05]} 33. g4
{[%clk 00:00:04]} {[%emt 00:00:04]} Rf4 {[%clk 00:00:12]} {[%emt 00:00:01]} 34.
Qg3 {[%clk 00:00:05]} {[%emt 00:00:02]} Qd1+ {[%clk 00:00:12]} {[%emt
00:00:01]} 35. Kh2 {[%clk 00:00:04]} {[%emt 00:00:03]} Rxg4 {[%clk 00:00:13]}
{[%emt 00:00:01]} 36. h5+ {[%clk 00:00:03]} {[%emt 00:00:03]} Kh6 {[%clk
00:00:13]} {[%emt 00:00:03]} 37. Qh3 {[%clk 00:00:03]} {[%emt 00:00:02]} Qg1#
{[%emt 00:00:01]} 0-1

[Event "SM-blixten 2025"]
[Site "Uppsala, Sweden"]
[Date "2025.07.03"]
[Round "6.5"]
[White "Agrest, Simon"]
[Black "Pantzar, Milton"]
[Result "0-1"]
[TimeControl "3 min + 2 sec increment starting from move 1"]
[BlackTitle "IM"]
[WhiteElo "2006"]
[BlackElo "2444"]

1. e4 {[%clk 00:03:02]} {[%emt 00:00:01]} c6 {[%clk 00:03:02]} {[%emt
00:00:02]} 2. d4 {[%clk 00:03:03]} {[%emt 00:00:01]} d5 {[%clk 00:03:03]}
{[%emt 00:00:02]} 3. e5 {[%clk 00:03:05]} Bf5 {[%clk 00:03:01]} {[%emt
00:00:04]} 4. Be2 {[%clk 00:03:05]} {[%emt 00:00:02]} e6 {[%clk 00:02:49]}
{[%emt 00:00:14]} 5. Nf3 {[%clk 00:03:06]} {[%emt 00:00:01]} Ne7 {[%clk
00:02:49]} {[%emt 00:00:02]} 6. Nh4 {[%clk 00:03:01]} {[%emt 00:00:07]} Be4
{[%clk 00:02:40]} {[%emt 00:00:10]} 7. O-O {[%clk 00:02:55]} {[%emt 00:00:08]}
c5 {[%clk 00:02:18]} {[%emt 00:00:24]} 8. c3 {[%clk 00:02:48]} {[%emt
00:00:10]} Nbc6 {[%clk 00:02:13]} {[%emt 00:00:07]} 9. Be3 {[%clk 00:02:39]}
{[%emt 00:00:11]} Nf5 {[%clk 00:01:59]} {[%emt 00:00:16]} 10. Nxf5 {[%clk
00:02:38]} {[%emt 00:00:03]} Bxf5 {[%clk 00:01:59]} {[%emt 00:00:01]} 11. g4
{[%clk 00:02:21]} {[%emt 00:00:19]} Bg6 {[%clk 00:01:56]} {[%emt 00:00:06]} 12.
f4 {[%clk 00:02:22]} {[%emt 00:00:01]} cxd4 {[%clk 00:01:40]} {[%emt 00:00:17]}
13. cxd4 {[%clk 00:02:20]} {[%emt 00:00:04]} Bxb1 {[%clk 00:01:27]} {[%emt
00:00:14]} 14. Rxb1 {[%clk 00:02:14]} {[%emt 00:00:09]} Be7 {[%clk 00:01:26]}
{[%emt 00:00:04]} 15. f5 {[%clk 00:02:05]} {[%emt 00:00:11]} Bg5 {[%clk
00:01:25]} {[%emt 00:00:02]} 16. Bf2 {[%clk 00:02:01]} {[%emt 00:00:07]} Bh4
{[%clk 00:01:18]} {[%emt 00:00:09]} 17. Qd2 {[%clk 00:01:21]} {[%emt 00:00:42]}
Bxf2+ {[%clk 00:01:15]} {[%emt 00:00:05]} 18. Rxf2 {[%clk 00:01:21]} {[%emt
00:00:01]} Qb6 {[%clk 00:01:12]} {[%emt 00:00:06]} 19. Rd1 {[%clk 00:01:21]}
{[%emt 00:00:01]} O-O-O {[%clk 00:01:08]} {[%emt 00:00:07]} 20. a3 {[%clk
00:01:07]} {[%emt 00:00:17]} Kb8 {[%clk 00:01:00]} {[%emt 00:00:09]} 21. b4
{[%clk 00:01:06]} {[%emt 00:00:03]} exf5 {[%clk 00:00:36]} {[%emt 00:00:26]} 22.
Rxf5 {[%clk 00:00:48]} {[%emt 00:00:20]} Ka8 {[%clk 00:00:35]} {[%emt
00:00:03]} 23. Rxf7 {[%clk 00:00:44]} {[%emt 00:00:06]} Nxe5 {[%clk 00:00:35]}
{[%emt 00:00:02]} 24. Rxg7 {[%clk 00:00:33]} {[%emt 00:00:13]} h5 {[%clk
00:00:17]} {[%emt 00:00:19]} 25. g5 {[%clk 00:00:30]} {[%emt 00:00:05]} h4
{[%clk 00:00:15]} {[%emt 00:00:04]} 26. Qf4 {[%clk 00:00:26]} {[%emt 00:00:06]}
Nc6 {[%clk 00:00:13]} {[%emt 00:00:04]} 27. b5 {[%clk 00:00:15]} {[%emt
00:00:14]} Na5 {[%clk 00:00:13]} {[%emt 00:00:01]} 28. Bf3 {[%clk 00:00:09]}
{[%emt 00:00:08]} Rdf8 {[%clk 00:00:10]} {[%emt 00:00:05]} 29. Qg4 {[%clk
00:00:08]} {[%emt 00:00:04]} Qxb5 {[%clk 00:00:09]} {[%emt 00:00:03]} 30. g6
{[%clk 00:00:07]} {[%emt 00:00:02]} Qb3 {[%clk 00:00:09]} {[%emt 00:00:02]} 31.
Rf1 {[%clk 00:00:06]} {[%emt 00:00:04]} Qe3+ {[%clk 00:00:10]} {[%emt
00:00:01]} 32. Kg2 {[%clk 00:00:04]} {[%emt 00:00:04]} h3+ {[%clk 00:00:10]}
{[%emt 00:00:01]} 33. Kh1 {[%clk 00:00:05]} {[%emt 00:00:01]} Qd3 {[%clk
00:00:11]} {[%emt 00:00:02]} 34. Qg3 {[%clk 00:00:03]} {[%emt 00:00:04]} 0-1

[Event "SM-blixten 2025"]
[Site "Uppsala, Sweden"]
[Date "2025.07.03"]
[Round "8.1"]
[White "Galperin, Platon"]
[Black "Jonsson, Mikael"]
[Result "1-0"]
[TimeControl "3 min + 2 sec increment starting from move 1"]
[WhiteTitle "GM"]
[WhiteElo "2506"]
[BlackElo "2204"]

1. Nf3 {[%clk 00:03:02]} {[%emt 00:00:02]} d5 {[%clk 00:02:59]} {[%emt
00:00:05]} 2. e3 {[%clk 00:03:02]} {[%emt 00:00:01]} Nd7 {[%clk 00:02:49]}
{[%emt 00:00:13]} 3. c4 {[%clk 00:03:02]} {[%emt 00:00:02]} e6 {[%clk
00:02:38]} {[%emt 00:00:12]} 4. Nc3 {[%clk 00:03:02]} {[%emt 00:00:03]} Ngf6
{[%clk 00:02:38]} {[%emt 00:00:02]} 5. b3 {[%clk 00:03:03]} {[%emt 00:00:01]}
c6 {[%clk 00:02:33]} {[%emt 00:00:07]} 6. d4 {[%clk 00:03:03]} {[%emt
00:00:02]} Bd6 {[%clk 00:02:32]} {[%emt 00:00:03]} 7. Bb2 {[%clk 00:03:04]}
{[%emt 00:00:02]} O-O {[%clk 00:02:30]} {[%emt 00:00:03]} 8. g3 {[%clk
00:03:03]} {[%emt 00:00:03]} Qe7 {[%clk 00:02:26]} {[%emt 00:00:06]} 9. Bg2
{[%clk 00:03:04]} {[%emt 00:00:01]} dxc4 {[%clk 00:02:15]} {[%emt 00:00:14]} 10.
bxc4 {[%clk 00:03:04]} {[%emt 00:00:01]} e5 {[%clk 00:02:15]} {[%emt 00:00:01]}
11. O-O {[%clk 00:03:03]} {[%emt 00:00:04]} Re8 {[%clk 00:02:04]} {[%emt
00:00:13]} 12. Qc2 {[%clk 00:03:03]} {[%emt 00:00:03]} Ba3 {[%clk 00:01:25]}
{[%emt 00:00:41]} 13. dxe5 {[%clk 00:03:02]} {[%emt 00:00:03]} Ng4 {[%clk
00:01:24]} {[%emt 00:00:02]} 14. e6 {[%clk 00:02:24]} {[%emt 00:00:40]} fxe6
{[%clk 00:01:24]} {[%emt 00:00:02]} 15. Ng5 {[%clk 00:02:20]} {[%emt 00:00:07]}
Ndf6 {[%clk 00:01:17]} {[%emt 00:00:09]} 16. Bxa3 {[%clk 00:02:18]} {[%emt
00:00:04]} Qxa3 {[%clk 00:01:17]} {[%emt 00:00:01]} 17. Rab1 {[%clk 00:02:18]}
{[%emt 00:00:03]} Qc5 {[%clk 00:01:13]} {[%emt 00:00:06]} 18. Nce4 {[%clk
00:02:18]} {[%emt 00:00:02]} Nxe4 {[%clk 00:00:53]} {[%emt 00:00:22]} 19. Nxe4
{[%clk 00:02:18]} {[%emt 00:00:02]} Qh5 {[%clk 00:00:44]} {[%emt 00:00:10]} 20.
h3 {[%clk 00:02:18]} {[%emt 00:00:02]} Ne5 {[%clk 00:00:41]} {[%emt 00:00:05]}
21. Nd6 {[%clk 00:02:18]} {[%emt 00:00:02]} Re7 {[%clk 00:00:25]} {[%emt
00:00:18]} 22. g4 {[%clk 00:02:11]} {[%emt 00:00:09]} Qh4 {[%clk 00:00:11]}
{[%emt 00:00:16]} 23. Rfd1 {[%clk 00:02:06]} {[%emt 00:00:07]} h5 {[%clk
00:00:10]} {[%emt 00:00:04]} 24. g5 {[%clk 00:01:57]} {[%emt 00:00:11]} Nf7
{[%clk 00:00:07]} {[%emt 00:00:04]} 25. g6 {[%clk 00:01:47]} {[%emt 00:00:12]}
Nxd6 {[%clk 00:00:06]} {[%emt 00:00:04]} 26. Rxd6 {[%clk 00:01:48]} {[%emt
00:00:01]} Re8 {[%clk 00:00:07]} {[%emt 00:00:01]} 27. c5 {[%clk 00:01:27]}
{[%emt 00:00:23]} e5 {[%clk 00:00:07]} {[%emt 00:00:02]} 28. Qb3+ {[%clk
00:01:23]} {[%emt 00:00:05]} Kh8 {[%clk 00:00:05]} {[%emt 00:00:04]} 29. e4
{[%clk 00:01:10]} {[%emt 00:00:15]} 1-0